Cogmind - Beta 12 @@@ ROGUE MODE // 2023.10.10 @ 15:54:54 Player: Pitt Result: Destroyed by Y-64 Sentinel with KE Penetrator Performance ------------- Evolutions (4) 2000 Regions Visited (11) 2200 Robots Destroyed (53) 265 Value Destroyed (1498) 1498 Prototype IDs (4) 80 Alien Tech Used (0) 0 Bonus (940) 940 TOTAL SCORE: 6983 Bonus ------- Follower Combat Kills 40 Entered Garrisons 400 Used RIF Installer 500 Cogmind --------- Core Integrity 0/850 Matter 229/300 Energy 78/100 System Corruption 3% Temperature Cool (0) Movement Core (100) Ox1 Location -6/Lower Caves Parts ------- > --- POWER (1) -------- (None) > --- PROPULSION (4) --- (None) > --- UTILITY (7) ------ Machine Analyzer Advanced Terrain Scan Processor Advanced Terrain Scan Processor Stasis Canceller Hacking Suite Hacking Suite Hacking Suite > --- WEAPON (3) ------- (None) > --- INVENTORY (5) ---- Improved Deuterium Engine Improved Cooling System Improved Terrain Scanner Splice Drone Bay (6/6) Coil Gun Peak State ------------ > --- POWER ------------ Micro Nuclear Core > --- PROPULSION ------- Compact Wheel Compact Wheel Centrium Wheel Centrium Wheel > --- UTILITY ---------- Medium Storage Unit Machine Analyzer Advanced Terrain Scan Processor Hacking Suite Hacking Suite Hacking Suite System Shield > --- WEAPON ----------- Gatling Laser Improved EM Pulse Cannon High-powered Shotgun > --- INVENTORY -------- Terrain Scan Processor Advanced Terrain Scan Processor Stasis Canceller Hacking Suite Splice Drone Bay [Rating: 53] Favorites ----------- Power Ion Engine Engine Ion Engine Power Core Micro Nuclear Core Propulsion Light Treads Treads Light Treads Wheel Wheel Hover Unit Improved Airjet Flight Unit Flight Unit Utility Improved Terrain Scanner Device Improved Terrain Scanner Storage Small Storage Unit Processor Terrain Scan Processor Hackware Hacking Suite Protection Light Armor Plating Weapon Improved Medium Laser Energy Gun Improved Medium Laser Energy Cannon Improved EM Pulse Cannon Ballistic Gun Light Assault Rifle Launcher Heavy Missile Launcher Special Weapon Mining Laser Slashing Weapon Greatsword Special Melee Weapon Datajack Build | -11 -10 -9 -9 -8 -7 -7 -7 -6 -6 -6 -6 ------- Run | Jun Mat Mat Min Mat Fac Gar Fac Fac Gar Fac Low Slots Evolved 8 | . . 2 . 2 2 . . 2 . . . Power . | . . . . . . . . . . . . Propulsion 2 | . . . . 2 . . . . . . . Utility 5 | . . 2 . . 1 . . 2 . . . Weapon 1 | . . . . . 1 . . . . . . Parts Attached 94 | 7 9 11 3 11 27 9 11 2 . 4 . Power 9 | 1 2 1 . 1 3 . 1 . . . . Engine 5 | 1 2 1 . 1 . . . . . . . Core 4 | . . . . . 3 . 1 . . . . Reactor . | . . . . . . . . . . . . Propulsion 25 | 2 3 2 . 4 8 1 5 . . . . Treads 2 | . . 2 . . . . . . . . . Leg . | . . . . . . . . . . . . Wheel 13 | 2 . . . 4 3 . 4 . . . . Hover 7 | . . . . . 5 1 1 . . . . Flight 3 | . 3 . . . . . . . . . . Utility 28 | 2 . 4 2 2 9 4 . 2 . 3 . Device 11 | 1 . 1 2 . 4 1 . . . 2 . Storage 5 | 1 . . . 1 2 . . 1 . . . Processor 6 | . . 1 . 1 3 . . . . 1 . Hackware 4 | . . . . . . 3 . 1 . . . Protection 2 | . . 2 . . . . . . . . . Artifact . | . . . . . . . . . . . . Weapon 32 | 2 4 4 1 4 7 4 5 . . 1 . Energy Gun 10 | 1 1 3 . 2 . 1 2 . . . . Energy Cannon 2 | . . . . 1 . . 1 . . . . Ballistic Gun 8 | 1 1 . . . 2 1 2 . . 1 . Ballistic Cannon . | . . . . . . . . . . . . Launcher 5 | . 1 1 . . 2 1 . . . . . Special Weapon 3 | . . . 1 1 . 1 . . . . . Impact Weapon . | . . . . . . . . . . . . Slashing Weapon 3 | . 1 . . . 2 . . . . . . Piercing Weapon . | . . . . . . . . . . . . Special Melee Weapon 1 | . . . . . 1 . . . . . . Unidentified Prototypes 4 | . . 1 1 1 1 . . . . . . Parts Lost 32 | . 1 4 . 1 3 13 1 . 9 . . Power 4 | . . 1 . 1 . 1 . . 1 . . Propulsion 12 | . 1 1 . . 1 5 . . 4 . . Utility 4 | . . 1 . . . 2 . . 1 . . Weapon 12 | . . 1 . . 2 5 1 . 3 . . Highest Loss Streak 13 | . 1 3 . 1 3 13 1 . 9 . . To Critical Strikes . | . . . . . . . . . . . . Average Slot Usage (%) 90 | . 96 88 99 97 85 76 82 98 73 45 46 Engine 7 | . 14 9 11 9 3 . . . . . . Core 1 | . . . . . 3 4 6 6 3 . . Treads 6 | . . 5 22 3 . . . . . . . Wheel 10 | . 13 . . 30 22 . 18 26 14 . . Hover 1 | . . . . . 1 22 2 . . . . Flight 4 | . 11 16 . . . . . . . . . Device 10 | . 14 18 10 9 7 3 . . . 5 6 Storage 8 | . 14 11 11 9 7 6 . 6 4 . . Processor 11 | . . 3 11 16 21 21 15 13 13 19 20 Hackware 3 | . . . . . . 3 23 24 26 20 20 Protection 3 | . . 2 11 1 . . . . . . . Energy Gun 9 | . 7 12 18 10 . . 3 6 3 . . Energy Cannon 1 | . . . . 1 2 . 6 6 3 . . Ballistic Gun 4 | . 13 7 . . 2 7 3 6 3 . . Special Weapon 1 | . . . 3 5 . . . . . . . Slashing Weapon 1 | . 5 . . . 4 . . . . . . Naked Turns . | . . . . . . . . . . . . Heaviest Build 30 | 14 16 18 18 24 30 30 20 30 30 4 4 Greatest Support 64 | 26 26 40 40 46 56 36 64 64 64 3 3 Greatest Overweight (x) 3 | . 3 1 . 2 2 3 1 . 3 1 1 Average Overweight (x) . | . 1 . . . . . . . . . 1 Largest Inventory Capacity 10 | 8 8 8 8 8 10 10 5 10 10 5 5 Average Capacity 7 | 7 8 8 8 8 8 9 5 10 8 5 5 Most Carried 10 | 5 8 8 8 8 10 10 5 7 7 5 5 Average Carried 7 | 3 7 7 7 7 8 8 4 4 6 4 5 Final Capacity 10 | 8 8 8 8 8 10 5 5 10 5 5 5 Final Carried 10 | 5 8 8 8 8 10 5 5 7 5 5 5 Class Distribution -------------------- 50% | Scavenger-Mutant 17% | Mutant 12% | Hacker-Mutant 7% | Scavenger-Gladiator 4% | Scavenger-Skirmisher Dominant Class ---------------- Mutant | -10/Materials Scavenger-Mutant | -9/Materials Scavenger-Mutant | -9/Mines Scavenger-Skirmisher | -8/Materials Scavenger-Gladiator | -7/Factory Mutant | -7/Garrison Hacker-Mutant | -7/Factory Hacker-Mutant | -6/Factory Hacker-Mutant | -6/Garrison Hacker-Scout | -6/Factory Hacker-Scout | -6/Lower Caves Resources | -11 -10 -9 -9 -8 -7 -7 -7 -6 -6 -6 -6 ----------- Run | Jun Mat Mat Min Mat Fac Gar Fac Fac Gar Fac Low Matter Collected 1289 | 114 134 233 90 89 166 218 198 . 36 . 11 Remotely . | . . . . . . . . . . . . Salvage Created 1662 | 114 137 380 36 249 343 191 198 . 14 . . Parts 95 | 17 11 16 4 11 22 5 8 . 1 . . Haulers Intercepted . | . . . . . . . . . . . . Recyclers Shooed 2 | . . 1 . 1 . . . . . . . Parts Field Recycled . | . . . . . . . . . . . . Retrieved Matter . | . . . . . . . . . . . . Parts Self-Destructed . | . . . . . . . . . . . . Prevented . | . . . . . . . . . . . . Kills | -11 -10 -9 -9 -8 -7 -7 -7 -6 -6 -6 -6 ------- Run | Jun Mat Mat Min Mat Fac Gar Fac Fac Gar Fac Low Combat Hostiles Destroyed 37 | . 8 6 3 1 7 8 3 . 1 . . Melee 4 | . . . . . 4 . . . . . . Guns 17 | . 3 6 3 . 1 2 1 . 1 . . Cannons 3 | . . . . 1 . . 2 . . . . AOE 13 | . 5 . . . 2 6 . . . . . Classes Destroyed 11 | 2 2 3 . 1 2 1 . . . . . Worker 1 | 1 . . . . . . . . . . . Builder 2 | . . 1 . . 1 . . . . . . Tunneler 6 | 6 . . . . . . . . . . . Recycler 4 | . . 1 . 2 . . 1 . . . . Mechanic 2 | . . . . 1 1 . . . . . . Operator 1 | . . . . . 1 . . . . . . Swarmer 12 | . 5 . 3 . 3 . . . 1 . . Grunt 19 | . 3 5 . . 2 7 2 . . . . Duelist 1 | . . . . . . 1 . . . . . Sentry 4 | . . 1 . 1 1 . 1 . . . . Programmer 1 | . . . . . 1 . . . . . . Best Kill Streak 7 | 3 7 2 3 1 3 4 2 . 1 . . Combat Bots Only 7 | . 7 2 3 1 3 4 2 . 1 . . Max Kills in Single Turn 5 | 1 5 1 1 1 2 2 1 . 1 . . Gunslinging . | . . . . . . . . . . . . Exploded 5 | . 5 . . . 2 2 . . . . . Melee 1 | . . . . . 1 . . . . . . Uniques/NPCs Destroyed . | . . . . . . . . . . . . Combat | -11 -10 -9 -9 -8 -7 -7 -7 -6 -6 -6 -6 -------- Run | Jun Mat Mat Min Mat Fac Gar Fac Fac Gar Fac Low Damage Taken 5212 | . 412 389 50 128 728 1349 339 . 1789 . 28 Core 1747 | . 124 185 9 7 146 373 35 . 840 . 28 Absorbed by Shields . | . . . . . . . . . . . . Redirected to Shielding 20 | . . 20 . . . . . . . . . Regen/Repaired (Parts) 74 | . . . . 37 37 . . . . . . Core Remaining (%) 63 | 100 50 . 51 98 . . 20 . . . . Volleys Fired 194 | 20 40 38 12 21 13 30 12 . 8 . . Largest 2 | 2 2 2 1 2 2 2 1 . 2 . . Hottest 156 | 70 70 96 100 156 131 75 69 . 149 . . Shots Fired 239 | 38 44 48 12 27 14 34 13 . 9 . . Gun 196 | 38 43 45 8 17 6 22 9 . 8 . . Cannon 12 | . . . . 4 3 . 4 . 1 . . Launcher 16 | . 1 3 . . 5 7 . . . . . Special 15 | . . . 4 6 . 5 . . . . . Kinetic 99 | 18 37 11 . . 5 16 9 . 3 . . Thermal 114 | 20 6 34 12 27 4 6 . . 5 . . Explosive 16 | . 1 3 . . 5 7 . . . . . Electromagnetic 5 | . . . . . . . 4 . 1 . . Robot Hit Streak 17 | 4 9 17 3 5 2 5 8 . 3 . . Robot Miss Streak 5 | 2 3 1 1 2 2 4 2 . 5 . . Penetration Max . | . . . . . . . . . . . . Secondary Targets . | . . . . . . . . . . . . Shots Hit Robots 168 | 20 27 37 5 15 24 22 12 . 6 . . Core Hits 91 | 10 15 17 3 6 10 17 7 . 6 . . Critical Kills . | . . . . . . . . . . . . Critical Parts Destroyed 1 | . 1 . . . . . . . . . . Critical Strikes 9 | 2 1 . 1 1 4 . . . . . . Burn 4 | 2 . . 1 1 . . . . . . . Destroy 1 | . 1 . . . . . . . . . . Sever 4 | . . . . . 4 . . . . . . Melee Attacks 35 | . 4 . . . 31 . . . . . . Impact . | . . . . . . . . . . . . Slashing 33 | . 4 . . . 29 . . . . . . Piercing . | . . . . . . . . . . . . Sneak Attacks 5 | . 1 . . . 4 . . . . . . Combat Hostiles . | . . . . . . . . . . . . Follow-up Attacks . | . . . . . . . . . . . . Damage Inflicted 4652 | 247 584 400 87 307 1368 1186 321 . 152 . . Guns 1708 | 247 221 397 87 184 35 269 159 . 109 . . Cannons 189 | . . . . 75 25 . 89 . . . . Explosions 1508 | . 339 . . . 188 908 73 . . . . Melee 1143 | . 23 . . . 1120 . . . . . . Ramming 56 | . 1 3 . . . 9 . . 43 . . Kinetic 662 | 59 170 60 . . 18 187 159 . 9 . . Thermal 1267 | 188 51 337 87 307 42 82 73 . 100 . . Explosive 1435 | . 339 . . . 188 908 . . . . . Electromagnetic 89 | . . . . . . . 89 . . . . Impact . | . . . . . . . . . . . . Slashing 1143 | . 23 . . . 1120 . . . . . . Piercing . | . . . . . . . . . . . . Highest Corruption 3 | . . . . . 1 1 1 . 3 3 3 Average Corruption 1 | . . . . . 1 1 1 . 2 3 3 Corruption Purged . | . . . . . . . . . . . . Corruption Blocked . | . . . . . . . . . . . . Effects 19 | . . . . . 4 3 8 . 2 2 . Message Errors 6 | . . . . . . 1 3 . 1 1 . Matter Fused 6 | . . . . . 3 1 . . 1 1 . Heat Flow Errors 1 | . . . . . 1 . . . . . . Energy Discharges 1 | . . . . . . 1 . . . . . Data Loss (minor) 2 | . . . . . . . 2 . . . . Data Loss (major) 2 | . . . . . . . 2 . . . . Misfires 1 | . . . . . . . 1 . . . . Overload Shots . | . . . . . . . . . . . . Overflow Damage 273 | . 4 . . 4 236 26 3 . . . . Projectiles 4 | . . . . 4 . . . . . . . Explosions 52 | . 4 . . . 19 26 3 . . . . Melee 217 | . . . . . 217 . . . . . . Knockbacks . | . . . . . . . . . . . . Impact . | . . . . . . . . . . . . Kinetic . | . . . . . . . . . . . . Secondary . | . . . . . . . . . . . . Self-Inflicted Damage 305 | . 19 1 . 94 63 75 36 . 17 . . Shots 9 | . 1 . . 3 2 2 1 . . . . Rammed 24 | . 1 1 . . . 4 . . 18 . . Targets Rammed 24 | . 1 1 . . . 4 . . 18 . . Kicked . | . . . . . . . . . . . . Crushed . | . . . . . . . . . . . . Highest Temperature 207 | 60 68 36 128 207 165 86 37 . 194 . . Average Temperature 32 | 22 13 13 39 43 45 39 17 . 113 . . Received Heat Transfer 1599 | . 177 183 . 36 171 423 87 . 522 . . Siege Activations . | . . . . . . . . . . . . Robots Corrupted . | . . . . . . . . . . . . Combat Hostiles . | . . . . . . . . . . . . Parts Fried . | . . . . . . . . . . . . Impact Corruptions . | . . . . . . . . . . . . Robots Melted . | . . . . . . . . . . . . Combat Hostiles . | . . . . . . . . . . . . Parts Melted 5 | 2 . 3 . . . . . . . . . Heat Transferred 3111 | 703 148 762 259 692 74 148 100 . 225 . . Parts Sabotaged . | . . . . . . . . . . . . Parts Stolen . | . . . . . . . . . . . . Parts Stripped . | . . . . . . . . . . . . Power Chain Reactions 2 | . . . . 1 . . 1 . . . . Missiles Intercepted . | . . . . . . . . . . . . Alert | -11 -10 -9 -9 -8 -7 -7 -7 -6 -6 -6 -6 ------- Run | Jun Mat Mat Min Mat Fac Gar Fac Fac Gar Fac Low Peak Influence 306 | 35 251 127 70 69 173 306 140 66 76 38 . Initial 65 | . 22 42 49 27 27 32 65 51 46 38 . Average 60 | 12 121 41 15 41 94 167 65 61 36 38 . Maximum Alert Level 1 | . 1 . . . . 1 . . . . . Low Security (%) 93 | 100 66 100 100 100 100 70 100 100 100 100 . Level 1 6 | . 33 . . . . 29 . . . . . Level 2 . | . . . . . . . . . . . . Level 3 . | . . . . . . . . . . . . Level 4 . | . . . . . . . . . . . . Level 5 . | . . . . . . . . . . . . High Security . | . . . . . . . . . . . . Max Security . | . . . . . . . . . . . . Squads Dispatched 7 | . 1 . . 1 4 . 1 . . . . Investigation 1 | . . . . . . . 1 . . . . Extermination 1 | . . . . . 1 . . . . . . Reinforcement 5 | . 1 . . 1 3 . . . . . . Assault . | . . . . . . . . . . . . Garrison . | . . . . . . . . . . . . Intercept . | . . . . . . . . . . . . Searches Triggered . | . . . . . . . . . . . . Construction Impeded . | . . . . . . . . . . . . Haulers Reinforced . | . . . . . . . . . . . . Active Scanning Responses . | . . . . . . . . . . . . Cargo Convoy Interrupts . | . . . . . . . . . . . . Stealth | -11 -10 -9 -9 -8 -7 -7 -7 -6 -6 -6 -6 --------- Run | Jun Mat Mat Min Mat Fac Gar Fac Fac Gar Fac Low Distress Signals 6 | . 2 2 . 1 . . 1 . . . . Communications Jammed . | . . . . . . . . . . . . Distress Signals . | . . . . . . . . . . . . Times Spotted 81 | . 17 10 3 5 14 11 4 . 14 . 3 Peak Tracking Total 11 | . 8 4 3 2 3 4 2 . 11 . 5 Tactical Retreats 8 | . 4 1 . . 2 . . . 1 . . Traps | -11 -10 -9 -9 -8 -7 -7 -7 -6 -6 -6 -6 ------- Run | Jun Mat Mat Min Mat Fac Gar Fac Fac Gar Fac Low Traps Triggered 3 | . . . . . 1 . . . 1 1 . Indirectly . | . . . . . . . . . . . . Trap Hack Attempts . | . . . . . . . . . . . . Triggered . | . . . . . . . . . . . . Disarmed . | . . . . . . . . . . . . Reprogrammed . | . . . . . . . . . . . . Reused . | . . . . . . . . . . . . Traps Extracted . | . . . . . . . . . . . . Installed . | . . . . . . . . . . . . Triggered . | . . . . . . . . . . . . Machines | -11 -10 -9 -9 -8 -7 -7 -7 -6 -6 -6 -6 ---------- Run | Jun Mat Mat Min Mat Fac Gar Fac Fac Gar Fac Low Machines Disabled 6 | . . . 1 2 . 1 2 . . . . Max in Single Turn 2 | . . . 1 2 . 1 . . . . . Machines Repaired . | . . . . . . . . . . . . Machines Sabotaged . | . . . . . . . . . . . . Overloaded Fab Kills . | . . . . . . . . . . . . Hacking | -11 -10 -9 -9 -8 -7 -7 -7 -6 -6 -6 -6 --------- Run | Jun Mat Mat Min Mat Fac Gar Fac Fac Gar Fac Low Machines Accessed 28 | . 5 4 1 1 4 2 6 3 1 1 . Terminals 18 | . 5 4 1 . 1 2 2 1 1 1 . Fabricators 2 | . . . . . . . 2 . . . . Repair Stations 3 | . . . . 1 2 . . . . . . Recycling Units . | . . . . . . . . . . . . Scanalyzers 3 | . . . . . . . 2 1 . . . Garrison Access 2 | . . . . . 1 . . 1 . . . Total Hacks 68 | . 13 10 4 2 10 2 18 5 3 1 . Successful 32 | . 4 5 . 2 5 1 9 4 1 1 . Failed 36 | . 9 5 4 . 5 1 9 1 2 . . Catastrophic 7 | . 1 1 1 . . 1 1 . 2 . . Database Lockouts . | . . . . . . . . . . . . Manual 32 | . 13 6 4 . 2 . 5 . 2 . . Terminals 46 | . 13 10 4 . 2 2 9 2 3 1 . Fabricators 7 | . . . . . . . 7 . . . . Repair Stations 9 | . . . . 2 7 . . . . . . Recycling Units . | . . . . . . . . . . . . Scanalyzers 4 | . . . . . . . 2 2 . . . Garrison Access 2 | . . . . . 1 . . 1 . . . Terminal Hacks 12 | . 1 2 . . . 1 5 1 1 1 . Part Schematic 2 | . . . . . . . 2 . . . . Open Door 1 | . . . . . . 1 . . . . . Branch Access Points 1 | . . . . . . . 1 . . . . Emergency Access Points 1 | . . . . . . . . . 1 . . Terminal Index 2 | . 1 . . . . . 1 . . . . Alert Level 2 | . . . . . . . 1 . . 1 . Locate Traps 1 | . . 1 . . . . . . . . . Zone Layout 2 | . . 1 . . . . . 1 . . . Fabricator Hacks 4 | . . . . . . . 4 . . . . Network Status 1 | . . . . . . . 1 . . . . Load Schematic 1 | . . . . . . . 1 . . . . Build 2 | . . . . . . . 2 . . . . Repair Station Hacks 6 | . . . . 2 4 . . . . . . Scan Component 3 | . . . . 1 2 . . . . . . Repair 3 | . . . . 1 2 . . . . . . Recycling Unit Hacks . | . . . . . . . . . . . . Scanalyzer 2 | . . . . . . . . 2 . . . Insert Component 1 | . . . . . . . . 1 . . . Analyze 1 | . . . . . . . . 1 . . . Garrison Access Hacks 2 | . . . . . 1 . . 1 . . . Unlock Access 2 | . . . . . 1 . . 1 . . . Unauthorized Hacks 6 | . 3 3 . . . . . . . . . Terminals 6 | . 3 3 . . . . . . . . . Track 1 | . . 1 . . . . . . . . . Botnet 4 | . 2 2 . . . . . . . . . Operators 1 | . 1 . . . . . . . . . . Fabricators . | . . . . . . . . . . . . Repair Stations . | . . . . . . . . . . . . Recycling Units . | . . . . . . . . . . . . Scanalyzers . | . . . . . . . . . . . . Garrison Access . | . . . . . . . . . . . . Data Cores Recovered . | . . . . . . . . . . . . Used . | . . . . . . . . . . . . Hacking Detections 23 | . 4 4 . . 4 2 6 1 1 1 . Full Trace Events 1 | . . . . . . . 1 . . . . Feedback Events . | . . . . . . . . . . . . Feedback Blocked . | . . . . . . . . . . . . Robot Schematics Acquired . | . . . . . . . . . . . . Robots Built . | . . . . . . . . . . . . Authchips . | . . . . . . . . . . . . Time . | . . . . . . . . . . . . Total Robot Build Rating . | . . . . . . . . . . . . Part Schematics Acquired 3 | . . . . . . . 2 1 . . . Parts Built 3 | . . . . . . . 3 . . . . Authchips . | . . . . . . . . . . . . Time 142 | . . . . . . . 142 . . . . Total Part Build Rating 15 | . . . . . . . 15 . . . . Parts Repaired 3 | . . . . 1 2 . . . . . . Time 83 | . . . . 26 57 . . . . . . Parts Recycled . | . . . . . . . . . . . . Recycled Matter . | . . . . . . . . . . . . Retrieved Matter . | . . . . . . . . . . . . Retrieved Components . | . . . . . . . . . . . . Parts Scanalyzed 1 | . . . . . . . . 1 . . . Part Schematics Acquired 1 | . . . . . . . . 1 . . . Parts Damaged . | . . . . . . . . . . . . Bothacking | -11 -10 -9 -9 -8 -7 -7 -7 -6 -6 -6 -6 ------------ Run | Jun Mat Mat Min Mat Fac Gar Fac Fac Gar Fac Low Used RIF Installer 1 | . . . . . . . . . 1 . . Robots Hacked 2 | . . . . . 1 1 . . . . . Non-combat 1 | . . . . . 1 . . . . . . Combat 1 | . . . . . . 1 . . . . . Robot Hacks Applied 3 | . . . . . 2 1 . . . . . parse_system 1 | . . . . . . 1 . . . . . no_distress 2 | . . . . . 2 . . . . . . Relay Couplers Released . | . . . . . . . . . . . . Fabnet Peak Effective % . | . . . . . . . . . . . . Robots Rewired 4 | . . . . . . 4 . . . . . Allies Hacked . | . . . . . . . . . . . . Hacks Repelled . | . . . . . . . . . . . . Allies | -11 -10 -9 -9 -8 -7 -7 -7 -6 -6 -6 -6 -------- Run | Jun Mat Mat Min Mat Fac Gar Fac Fac Gar Fac Low Total Allies 7 | . . . . . . 4 3 . . . . Largest Group 4 | . . . . . . 4 3 . . . . Highest-Rated Group 118 | . . . . . . 118 93 . . . . Highest-Rated Ally 31 | . . . . . . 31 31 . . . . Total Orders 3 | . . . 3 . . . . . . . . RETURN 3 | . . . 3 . . . . . . . . Ally Attacks 41 | . . . . . . 14 27 . . . . Total Damage 791 | . . . . . . 310 481 . . . . Kills 3 | . . . . . . 1 2 . . . . Allies Corrupted . | . . . . . . . . . . . . Allies Melted . | . . . . . . . . . . . . Intel | -11 -10 -9 -9 -8 -7 -7 -7 -6 -6 -6 -6 ------- Run | Jun Mat Mat Min Mat Fac Gar Fac Fac Gar Fac Low Robot Analysis Total . | . . . . . . . . . . . . Derelict Logs Recovered 1 | . . . 1 . . . . . . . . Drone Launches 4 | . . . 4 . . . . . . . . Drone Recoveries 4 | . . . 4 . . . . . . . . Exploration | -11 -10 -9 -9 -8 -7 -7 -7 -6 -6 -6 -6 ------------- Run | Jun Mat Mat Min Mat Fac Gar Fac Fac Gar Fac Low Turns Passed 6462 | 230 906 1073 1589 496 892 288 588 126 155 108 11 Spaces Moved 2961 | 178 305 204 180 223 638 376 432 118 162 134 11 Core 367 | 2 . . . . . 86 46 . 88 134 11 Treads 321 | . . 109 180 32 . . . . . . . Legs . | . . . . . . . . . . . . Wheels 1478 | 176 45 . . 191 555 . 319 118 74 . . Hover 440 | . . . . . 83 290 67 . . . . Flight 355 | . 260 95 . . . . . . . . . Fastest Speed 37 | 50 90 37 160 85 38 38 50 95 50 50 100 Average Speed 91 | 90 129 129 160 96 85 43 85 95 71 59 100 Slowest Speed 285 | 100 285 160 160 160 180 200 110 95 200 100 100 Overloaded Moves . | . . . . . . . . . . . . Propulsion Burnouts . | . . . . . . . . . . . . Robots Hopped 1 | . . 1 . . . . . . . . . Cave-ins Triggered . | . . . . . . . . . . . . Exploration Rate (%) 21 | 5 46 18 42 21 17 44 11 5 38 4 8 Regions Visited 11 Branch Regions 2 Pre-discovered Areas . | . . . . . . . . . . . . Known Exits Taken 2 | . . . . . 1 . . 1 . . . Unknown Exits Taken 7 | 1 1 1 1 1 . . 1 . . 1 . Scrap Searched 2 | . . . 1 . . . . . . . 1 Spaces Dug 42 | . . 12 3 4 23 . . . . . . Terrain Destroyed 198 | . 13 21 3 7 43 109 2 . . . . Melee 2 | . . . . . 2 . . . . . . Projectile 9 | . . . 3 5 . 1 . . . . . AOE 187 | . 13 21 . 2 41 108 2 . . . . Terrain Rammed . | . . . . . . . . . . . . Walls Destroyed . | . . . . . . . . . . . . Machines Disabled . | . . . . . . . . . . . . Actions | -11 -10 -9 -9 -8 -7 -7 -7 -6 -6 -6 -6 --------- Run | Jun Mat Mat Min Mat Fac Gar Fac Fac Gar Fac Low Total 6379 | 209 769 963 1462 464 919 467 636 131 186 162 11 Wait 2964 | . 396 707 1261 197 163 43 175 8 . 14 . Move 2948 | 177 304 201 179 222 638 375 431 117 160 133 11 Hop 1 | . . 1 . . . . . . . . . Pick Up 51 | 5 7 2 3 6 18 2 3 4 . 1 . Fast Attach 46 | 7 4 5 . 4 12 4 8 . . 2 . Attach 25 | . 1 2 1 3 8 5 2 2 . 1 . Detach 10 | . . 1 1 . 5 . 1 . . 2 . Swap 23 | . 4 4 2 4 7 . 1 . . 1 . Drop 49 | . 8 1 3 7 22 4 3 . . 1 . Fire 194 | 20 40 38 12 21 13 30 12 . 8 . . Melee 35 | . 4 . . . 31 . . . . . . Ram 24 | . 1 1 . . . 4 . . 18 . . Kick . | . . . . . . . . . . . . Crush . | . . . . . . . . . . . . Escape Stasis 9 | . . . . . 2 . . . . 7 . Rewire . | . . . . . . . . . . . . Trap . | . . . . . . . . . . . . Miscellaneous . | . . . . . . . . . . . . Route ------- -11/Junkyard -10/Materials (discovered 2 exits: *Mat / [*Min]) -9/Materials -9/Mines -8/Materials -7/Factory -7/Garrison -7/Factory (discovered 5 exits: *Fac x2 / Sto / *Low x2) -6/Factory -6/Garrison -6/Factory -6/Lower Caves History --------- Turn | Location | Event 6 | -11/Junkyard | Discovered new exit (range 16) 231 | -11/Junkyard | Entered Materials 313 | -10/Materials | Build established: Mutant 677 | -10/Materials | Destroyed 7 combat bots 800 | -10/Materials | Discovered new exit (range 16) 1131 | -10/Materials | Discovered new exit (range 6) 1137 | -10/Materials | Entered another Materials area 1137 | -9/Materials | Evolved 2 slots: Utility x2 1454 | -9/Materials | Build established: Scavenger-Mutant 1928 | -9/Materials | Lost 3 parts (1p1u1w) 2188 | -9/Materials | Discovered new exit (range 12) 2210 | -9/Materials | Entered Mines 2237 | -9/Mines | Met a Derelict bent on vengeance 2801 | -9/Mines | Learned Materials trap positions 3285 | -9/Mines | Found the Drone Emporium 3317 | -9/Mines | Found Prototype Device 3318 | -9/Mines | Identified Splice Drone Bay 3761 | -9/Mines | Discovered new exit (range 11) 3799 | -9/Mines | Entered Materials 3799 | -8/Materials | Evolved 2 slots: Propulsion x2 3800 | -8/Materials | Loaded intel: 19 trap records 3966 | -8/Materials | Repaired Lgt. Armor Plating 4191 | -8/Materials | Discovered new exit (range 5) 4295 | -8/Materials | Entered Factory 4295 | -7/Factory | Evolved 2 slots: Utility x1, Weapon x1 4326 | -7/Factory | Build established: Scavenger-Skirmisher 4819 | -7/Factory | Repaired Imp. Terrain Scanner 4884 | -7/Factory | Build established: Scavenger-Gladiator 5002 | -7/Factory | Lost 3 parts (1n2w) 5085 | -7/Factory | Repaired Imp. Terrain Scanner 5181 | -7/Factory | Identified exit to Garrison 5187 | -7/Factory | Entered Garrison 5407 | -7/Garrison | Core integrity fell below 50% 5452 | -7/Garrison | Lost 13 parts (1p5n2u5w) 5458 | -7/Garrison | Discovered new exit (range 12) 5475 | -7/Garrison | Entered Factory 5492 | -7/Factory | Identified exit to Storage 5492 | -7/Factory | Identified exit to Lower Caves 5668 | -7/Factory | Fabricated Centrium Wheel (x2) 5692 | -7/Factory | Build established: Hacker-Mutant 5723 | -7/Factory | Discovered new exit (range 11) 5835 | -7/Factory | Fabricated Med. Storage Unit (x1) 6057 | -7/Factory | Discovered new exit (range 5) 6063 | -7/Factory | Entered another Factory area 6063 | -6/Factory | Evolved 2 slots: Utility x2 6180 | -6/Factory | Identified exit to Garrison 6189 | -6/Factory | Entered Garrison 6254 | -6/Garrison | Triggered checkpoint 6254 | -6/Garrison | Triggered checkpoint 6295 | -6/Garrison | Core integrity fell below 50% 6303 | -6/Garrison | Triggered checkpoint 6303 | -6/Garrison | Triggered checkpoint 6305 | -6/Garrison | Core integrity fell below 20% 6331 | -6/Garrison | Discovered new exit (range 11) 6332 | -6/Garrison | Lost 9 parts (1p4n1u3w) 6335 | -6/Garrison | Installed Relay Interface Framework 6344 | -6/Garrison | Entered Factory 6418 | -6/Factory | Discovered new exit (range 10) 6452 | -6/Factory | Entered Lower Caves 6463 | -6/Lower Caves | Destroyed by Y-64 Sentinel with KE Penetrator Last Messages --------------- 06424_ Field strength at 58. 06425_ Field strength at 52. 06427_ Stasis field depleted. 06433_ #I K/KU8SVOY KHZW3BH|STVZKB 06434_ U-05 Engineer lays Concrete. 06437_ Connecting with Terminal... 06437_ Current location identified: Factory >>Alert(Check) Current Alert Level: Low Security 06438_ K-01 Serf cleans the Terminal. LOCATION=UNKNOWN GOAL=ESCAPE 06461_ Searching scrap... 06461_ Found Kinecellerator. 06461_ Found Imp. Trap Extractor. 06461_ Found Imp. Medium Treads. 06461_ Found Cloaking Device. 06461_ Found 11 Matter. 06462_ Acquired 11 matter. 06463_ Penetrated by Slug. Map ----- +----------------------------------------------------+ | ?????????????????????????????????????????????????? | | ?????????????????????????????????????????????????? | | ??????????????????????????????? ?????????????????? | | ????????????????????????????? ????????????????? | | ????????????????????????????? ????????????????? | | ???????????????????????? ?? #???????????????? | | ???????????????????????# ?? #???????????????? | | ??????????????????????## ??# #???????????????? | | ?????????????????????## ?## #???????????????? | | ????????????????????## ## #???????????????? | | ????????????????????# #???????????????? | | ????????????????????? #???????????????? | | ??????????????????????? ##??????????????? | | ????????????????????????# ##?????????????? | | ????????????????????????# ##???? #??????? | | ???????????????????????## ### #??????? | | ???????????????????????# #??????? | | ????????????????????????# #??????? | | ???????????????????????## #???????? | | ??????????????????????## #???????? | | ??????????????????????# #???????? | | ??????????????????????# #???????? | | ??????????????????????## ## #??????? | | ???????????????????????## !## ##?? ##??????? | | ?????????????#" # ### !### #????#???????? | | ????????????????#Y @=#?## #???????????? | | ?????????????????# #?# #??????????? | | ?????????????#"Ylg # ### #?????????? | | ?????????????#"""???# #?# #????????? | | ????????????????????# ????????? | | ??????????????????? ## #???????? | | ?????????????????? #?## #### ## ?????????? | | ?????????????????# #????## #??? ##???????????? | | ?????????????????## #???????##??? ##?????????????? | | ??????????????????##?????????????????????????????? | | ?????????????????????????????????????????????????? | | ?????????????????????????????????????????????????? | | ?????????????????????????????????????????????????? | | ?????????????????????????????????????????????????? | | ?????????????????????????????????????????????????? | | ?????????????????????????????????????????????????? | | ?????????????????????????????????????????????????? | | ?????????????????????????????????????????????????? | | ?????????????????????????????????????????????????? | | ?????????????????????????????????????????????????? | | ?????????????????????????????????????????????????? | | ?????????????????????????????????????????????????? | | ?????????????????????????????????????????????????? | | ?????????????????????????????????????????????????? | | ?????????????????????????????????????????????????? | +----------------------------------------------------+ Best States ------------- Heat Dissipation 48 Energy Generation 18 Energy Capacity 250 Matter Stores 300 Matter Capacity 300 Sight Range 16 Terrain Scan Range 16 Terrain Scan Density 410 Armor Coverage 150 Core Shielding 20 Evasion (%) 62 Melee Accuracy 6 Recoil Reduction 2 Offensive Hacking 30 Defensive Hacking 10 Item Schematics ----------------- Med. Storage Unit | -7/Factory | Hacked Adv. ECM Suite | -7/Factory | Hacked Hacking Suite | -6/Factory | Scanalyzed Robot Schematics ------------------ None Fabricated ------------ Centrium Wheel | x2 | -7/Factory | Preloaded Med. Storage Unit | x1 | -7/Factory Alien Tech Used ----------------- None Achievements -------------- None Challenges ------------ None Game ------ Seed SapperResetSaw Manual? 0 Play Time 01:03:39 Cumulative 171.7 hours Start 2023.10.10 @ 13:45:18 End 2023.10.10 @ 15:54:54 Sessions 1 Manual Loads 0 Difficulty Rogue Special Mode None Game No. 259 Rogue 259 Adventurer 0 Explorer 0 Win Type - Total 0 Types 0/0/0/0/0/0/0/0/0 Lore% 51 Gallery% 59 Achievement% 40 Wizard Run 0 Options --------- ASCII 0 Keyboard 0 Movement Mouse Keybinds 0 Fullscreen 1 Font 12/Smallcaps Map View 83x54 Tactical HUD 1 Map Filters NONE Filters NONE Steam 1 RUN: 764df5fc-f542-4a2f-a00c-c5bcf207a813